fUST/lending_fUST_20250425
["ID","MTS","AMOUNT","RATE_DAILY","PERIOD"]
[358944455,1745576963486,-500.0,0.00015041,2]
[358944456,1745576963513,-500.0,0.00015041,2]
[358944457,1745576963536,-500.0,0.00015041,2]
[358944458,1745576963558,-327.16022102,0.00015041,2]
[358944459,1745576963587,-500.0,0.00015041,2]
[358944460,1745576963611,-500.0,0.00015041,2]
[358944461,1745576963632,-500.0,0.00015041,2]
[358944462,1745576963653,-500.0,0.00015041,2]
[358944463,1745576963679,-500.0,0.00015041,2]
[358944464,1745576963700,-500.0,0.00015041,2]
[358944465,1745576963723,-500.0,0.00015041,2]
[358944466,1745576963751,-500.0,0.00015041,2]
[358944467,1745576963965,-500.0,0.00015041,2]
[358944468,1745576963992,-500.0,0.00015041,2]
[358944469,1745576964014,-500.0,0.00015041,2]
[358944470,1745576964035,-311.15214476,0.00015041,2]
[358944471,1745576964056,-500.0,0.00015041,2]
[358944472,1745576964077,-500.0,0.00015041,2]
[358944473,1745576964106,-500.0,0.00015041,2]
[358944474,1745576964127,-500.0,0.00015041,2]
[358944475,1745576964148,-500.0,0.00015041,2]
[358944476,1745576964176,-500.0,0.00015041,2]
[358944477,1745576964200,-500.0,0.00015041,2]
[358944478,1745576964223,-500.0,0.00015041,2]
[358944479,1745576964244,-500.0,0.00015041,2]
[358944480,1745576964272,-500.0,0.00015041,2]
[358944481,1745576964294,-500.0,0.00015041,2]
[358944482,1745576964320,-500.0,0.00015041,2]
[358944483,1745576964341,-500.0,0.00015041,2]
[358944484,1745576964365,-500.0,0.00015041,2]
[358944485,1745576964391,-500.0,0.00015041,2]
[358944486,1745576964416,-650.0,0.00015041,2]
[358944487,1745576964440,-500.0,0.00015041,2]
[358944488,1745576964461,-499.99999999,0.00015041,2]
[358944489,1745576964486,-500.0,0.00015041,2]
[358944490,1745576964512,-500.0,0.00015041,2]
[358944491,1745576964537,-500.0,0.00015041,2]
[358944492,1745576964562,-500.0,0.00015041,2]
[358944493,1745576964587,-595.9280808,0.00015041,2]
[358944494,1745576964611,-500.0,0.00015041,2]
[358944495,1745576964635,-500.0,0.00015041,2]
[358944496,1745576964658,-500.0,0.00015041,2]
[358944497,1745576964682,-500.0,0.00015041,2]
[358944498,1745576964706,-500.0,0.00015041,2]
[358944499,1745576964730,-500.0,0.00015041,2]
[358944500,1745576964754,-500.0,0.00015041,2]
[358944501,1745576964777,-500.0,0.00015041,2]
[358944502,1745576964801,-500.0,0.00015041,2]
[358944503,1745576964825,-500.0,0.00015041,2]
[358944504,1745576964849,-500.0,0.00015041,2]
[358944505,1745576964873,-500.0,0.00015041,2]
[358944506,1745576964896,-500.0,0.00015041,2]
[358944507,1745576964920,-500.0,0.00015041,2]
[358944508,1745576964944,-500.0,0.00015041,2]
[358944509,1745576964968,-500.0,0.00015041,2]
[358944510,1745576964991,-500.0,0.00015041,2]
[358944511,1745576965016,-500.0,0.00015041,2]
[358944512,1745576965040,-500.0,0.00015041,2]
[358944513,1745576965064,-500.0,0.00015041,2]
[358944514,1745576965085,-24900.0,0.00015043,2]
[358944515,1745576965105,-8424.7660337,0.00015043,2]
[358944516,1745576969106,-1294.1429885,0.00015043,2]
[358944517,1745576969127,-112.43090465,0.00015107,2]
[358944528,1745577032821,-81.13142815,0.00015107,2]
[358944529,1745577032831,-869.0,0.00015569,2]
[358944530,1745577032841,-159.01035884,0.00015569,2]
[358944531,1745577032855,-340.98964116,0.00015569,2]
[358944532,1745577032863,-500.0,0.00015569,2]
[358944533,1745577032874,-500.0,0.00015569,2]
[358944534,1745577032884,-425.24002456,0.00015569,2]
[358944535,1745577032894,-201.2391272,0.00015569,2]
[358944536,1745577032905,-500.0,0.00015569,2]
[358944537,1745577032914,-500.0,0.00015569,2]
[358944538,1745577032924,-500.0,0.00015569,2]
[358944539,1745577032934,-524.59280808,0.00015569,2]
[358944540,1745577032944,-514.97382947,0.0001557,2]
[358944541,1745577032955,-1000.01500144,0.00015576,2]
[358944542,1745577032970,-300.0,0.00015576,2]
[358944543,1745577032980,-300.0,0.00015576,2]
[358944544,1745577032989,-1000.0,0.00015577,2]
[358944545,1745577032998,-279.0,0.00016163,2]
[358944546,1745577033009,-200.28186108,0.00016428,2]
[358944547,1745577033018,-207.4,0.00016428,2]
[358944548,1745577033027,-500.0,0.00016437,2]
[358944549,1745577033036,-500.0,0.00016437,2]
[358944550,1745577033046,-183.97504415,0.00016437,2]
[358944551,1745577033055,-500.0,0.00016437,2]
[358944552,1745577033064,-500.0,0.00016437,2]
[358944553,1745577033074,-500.0,0.00016437,2]
[358944554,1745577033083,-355.92002037,0.00016437,2]
[358944555,1745577033093,-500.0,0.00016438,2]
[358944556,1745577033102,-500.0,0.00016438,2]
[358944557,1745577033112,-500.0,0.00016438,2]
[358944558,1745577033122,-500.92880723,0.00016438,2]
[358944559,1745577033132,-500.0,0.00016438,2]
[358944560,1745577033142,-500.0,0.00016438,2]
[358944561,1745577033152,-500.0,0.00016438,2]
[358944562,1745577033162,-500.0,0.00016438,2]
[358944563,1745577033173,-500.0,0.00016438,2]
[358944564,1745577033183,-615.36823417,0.00016438,2]
[358944565,1745577033192,-500.0,0.00016438,2]
[358944566,1745577033202,-349.85915484,0.00016438,2]
[358944567,1745577033212,-500.0,0.00016438,2]
[358944568,1745577033221,-502.21434323,0.00016438,2]
[358944569,1745577033233,-510.83900413,0.00016438,2]
[358944570,1745577033242,-502.65331744,0.00016438,2]
[358944571,1745577033252,-500.0,0.00016438,2]
[358944572,1745577033261,-288.85347248,0.00016438,2]
[358944573,1745577033271,-527.19611969,0.00016438,2]
[358944574,1745577033282,-500.0,0.00016438,2]
[358944575,1745577033291,-500.0,0.00016438,2]
[358944576,1745577033301,-500.0,0.00016438,2]
[358944577,1745577033311,-500.0,0.00016438,2]
[358944578,1745577033321,-500.0,0.00016438,2]
[358944579,1745577033331,-651.99,0.00016438,2]
[358944580,1745577033340,-500.0,0.00016438,2]
[358944581,1745577033349,-500.0,0.00016438,2]
[358944582,1745577033359,-500.0,0.00016438,2]
[358944583,1745577033368,-500.0,0.00016438,2]
[358944584,1745577033377,-500.0,0.00016438,2]
[358944585,1745577033387,-500.0,0.00016438,2]
[358944586,1745577033397,-500.0,0.00016438,2]
[358944587,1745577033407,-500.0,0.00016438,2]
[358944588,1745577033417,-500.0,0.00016438,2]
[358944589,1745577033430,-500.0,0.00016438,2]
[358944590,1745577033439,-500.0,0.00016438,2]
[358944591,1745577033449,-500.0,0.00016438,2]
[358944592,1745577033459,-500.0,0.00016438,2]
[358944593,1745577033469,-651.41,0.00016438,2]
[358944594,1745577033480,-500.0,0.00016438,2]
[358944595,1745577033490,-500.0,0.00016438,2]
[358944596,1745577033501,-500.0,0.00016438,2]
[358944597,1745577033511,-500.0,0.00016438,2]
[358944598,1745577033521,-500.0,0.00016438,2]
[358944599,1745577033530,-500.0,0.00016438,2]
[358944600,1745577033539,-500.0,0.00016438,2]
[358944601,1745577033549,-500.0,0.00016438,2]
[358944602,1745577033558,-500.0,0.00016438,2]
[358944603,1745577033568,-490.34240792,0.00016438,2]
[358944604,1745577033577,-500.0,0.00016438,2]
[358944605,1745577033586,-500.0,0.00016438,2]
[358944606,1745577033596,-500.0,0.00016438,2]
[358944607,1745577033606,-637.13,0.00016438,2]
[358944608,1745577033616,-565.1,0.00016438,2]
[358944609,1745577033625,-500.0,0.00016438,2]
[358944610,1745577033634,-500.0,0.00016438,2]
[358944611,1745577033644,-500.0,0.00016438,2]
[358944612,1745577033654,-500.0,0.00016438,2]
[358944613,1745577033663,-500.0,0.00016438,2]
[358944614,1745577033672,-526.06,0.00016438,2]
[358944615,1745577033682,-500.0,0.00016438,2]
[358944616,1745577033692,-500.0,0.00016438,2]
[358944617,1745577033701,-500.0,0.00016438,2]
[358944618,1745577033711,-500.0,0.00016438,2]
[358944619,1745577033720,-500.0,0.00016438,2]
[358944620,1745577033731,-500.0,0.00016438,2]
[358944621,1745577033740,-500.0,0.00016438,2]
[358944622,1745577033750,-500.0,0.00016438,2]
[358944623,1745577033759,-500.0,0.00016438,2]
[358944624,1745577033769,-258.91961652,0.00016438,2]
[358944625,1745577033779,-500.0,0.00016438,2]
[358944626,1745577033788,-2746.21,0.00016438,2]
[358944627,1745577033799,-500.0,0.00016438,2]
[358944628,1745577033808,-500.0,0.00016438,2]
[358944629,1745577033818,-500.0,0.00016438,2]
[358944630,1745577033828,-229.51685688,0.00016438,2]
[358944631,1745577033837,-500.0,0.00016438,2]
[358944632,1745577033847,-500.0,0.00016438,2]
[358944633,1745577033856,-500.0,0.00016438,2]
[358944634,1745577033866,-500.0,0.00016438,2]
[358944635,1745577033875,-500.0,0.00016438,2]
[358944636,1745577033885,-500.0,0.00016438,2]
[358944637,1745577033894,-500.0,0.00016438,2]
[358944638,1745577033904,-500.0,0.00016438,2]
[358944639,1745577033913,-500.0,0.00016438,2]
[358944640,1745577033923,-500.0,0.00016438,2]
[358944641,1745577033932,-500.0,0.00016438,2]
[358944642,1745577033941,-500.0,0.00016438,2]
[358944643,1745577033951,-500.0,0.00016438,2]
[358944644,1745577033960,-500.0,0.00016438,2]
[358944645,1745577033970,-500.0,0.00016438,2]
[358944646,1745577033980,-500.0,0.00016438,2]
[358944647,1745577033989,-524.38,0.00016438,2]
[358944648,1745577033999,-500.0,0.00016438,2]
[358944649,1745577034008,-1121.65,0.00016438,2]
[358944650,1745577034019,-2561.55,0.00016438,2]
[358944651,1745577034028,-1033.2,0.00016438,2]
[358944652,1745577034038,-500.0,0.00016438,2]
[358944653,1745577034048,-500.0,0.00016438,2]
[358944654,1745577034058,-500.0,0.00016438,2]
[358944655,1745577034067,-500.0,0.00016438,2]
[358944656,1745577034077,-500.0,0.00016438,2]
[358944657,1745577034087,-957.24,0.00016438,2]
[358944658,1745577034096,-546.53392559,0.00016438,2]
[358944659,1745577034105,-500.0,0.00016438,2]
[358944660,1745577034115,-725.53,0.00016438,2]
[358944661,1745577034124,-500.0,0.00016438,2]
[358944662,1745577034133,-500.0,0.00016438,2]
[358944663,1745577034143,-500.0,0.00016438,2]
[358944664,1745577034153,-500.0,0.00016438,2]
[358944665,1745577034163,-500.0,0.00016438,2]
[358944666,1745577034172,-437.58377952,0.00016438,2]
[358944667,1745577034182,-500.0,0.00016438,2]
[358944668,1745577034191,-500.0,0.00016438,2]
[358944669,1745577034200,-679.05,0.00016438,2]
[358944670,1745577034210,-515.23,0.00016438,2]
[358944671,1745577034219,-500.0,0.00016438,2]
[358944672,1745577034230,-500.0,0.00016438,2]
[358944673,1745577034240,-500.0,0.00016438,2]
[358944674,1745577034249,-500.0,0.00016438,2]
[358944675,1745577034259,-500.0,0.00016438,2]
[358944676,1745577034430,-509.72,0.00016438,2]
[358944677,1745577034440,-500.0,0.00016438,2]
[358944678,1745577034450,-500.0,0.00016438,2]
[358944679,1745577034459,-500.0,0.00016438,2]
[358944680,1745577034468,-500.0,0.00016438,2]
[358944681,1745577034479,-259.42471429,0.00016438,2]
[358944682,1745577034488,-500.0,0.00016438,2]
[358944683,1745577034498,-500.0,0.00016438,2]
[358944684,1745577034507,-500.0,0.00016438,2]
[358944685,1745577034517,-736.61,0.00016438,2]
[358944686,1745577034527,-2313.3,0.00016438,2]
[358944687,1745577034536,-500.0,0.00016438,2]
[358944688,1745577034546,-500.0,0.00016438,2]
[358944689,1745577034555,-500.0,0.00016438,2]
[358944690,1745577034564,-500.0,0.00016438,2]
[358944691,1745577034573,-500.0,0.00016438,2]
[358944692,1745577034583,-500.0,0.00016438,2]
[358944693,1745577034593,-500.0,0.00016438,2]
[358944694,1745577034602,-504.70550923,0.00016438,2]
[358944695,1745577034611,-500.0,0.00016438,2]
[358944696,1745577034621,-500.0,0.00016438,2]
[358944697,1745577034630,-500.0,0.00016438,2]
[358944698,1745577034639,-501.38722147,0.00016438,2]
[358944699,1745577034649,-517.9436773,0.00016438,2]
[358944700,1745577034658,-500.0,0.00016438,2]
[358944701,1745577034668,-500.0,0.00016438,2]
[358944702,1745577034677,-1809.12,0.00016438,2]
[358944703,1745577034686,-500.0,0.00016438,2]
[358944704,1745577034695,-500.0,0.00016438,2]
[358944705,1745577034704,-500.0,0.00016438,2]
[358944706,1745577034714,-500.0,0.00016438,2]
[358944707,1745577034723,-500.0,0.00016438,2]
[358944708,1745577034734,-500.0,0.00016438,2]
[358944709,1745577034743,-500.0,0.00016438,2]
[358944710,1745577034752,-1320.82,0.00016438,2]
[358944711,1745577034761,-500.0,0.00016438,2]
[358944712,1745577034771,-500.0,0.00016438,2]
[358944713,1745577034780,-534.91192242,0.00016438,2]
[358944714,1745577034789,-500.0,0.00016438,2]
[358944715,1745577034798,-500.0,0.00016438,2]
[358944716,1745577034807,-500.0,0.00016438,2]
[358944717,1745577034816,-500.0,0.00016438,2]
[358944718,1745577034826,-504.76187709,0.00016438,2]
[358944719,1745577034835,-500.0,0.00016438,2]
[358944720,1745577034844,-500.0,0.00016438,2]
[358944721,1745577034853,-500.0,0.00016438,2]
[358944722,1745577034862,-500.0,0.00016438,2]
[358944723,1745577034871,-500.0,0.00016438,2]
[358944724,1745577034880,-500.0,0.00016438,2]
[358944725,1745577034888,-1052.28,0.00016438,2]
[358944726,1745577034897,-500.0,0.00016438,2]
[358944727,1745577034906,-500.0,0.00016438,2]
[358944728,1745577034915,-500.0,0.00016438,2]
[358944729,1745577034924,-500.0,0.00016438,2]
[358944730,1745577034934,-500.0,0.00016438,2]
[358944731,1745577034943,-500.0,0.00016438,2]
[358944732,1745577034952,-471.76378289,0.00016438,2]
[358944733,1745577034961,-500.0,0.00016438,2]
[358944734,1745577034970,-500.0,0.00016473,2]
[358944735,1745577034980,-500.0,0.00016473,2]
[358944736,1745577034989,-500.0,0.00016473,2]
[358944737,1745577034998,-500.0,0.00016473,2]
[358944738,1745577035008,-500.0,0.00016473,2]
[358944739,1745577035017,-501.41990258,0.00016473,2]
[358944740,1745577035026,-500.0,0.00016473,2]
[358944741,1745577035035,-500.0,0.00016473,2]
[358944742,1745577035045,-500.0,0.00016473,2]
[358944743,1745577035054,-500.0,0.00016473,2]
[358944744,1745577035063,-256.21708217,0.00016473,2]
[358944745,1745577035072,-500.0,0.00016473,2]
[358944746,1745577035081,-500.0,0.00016473,2]
[358944747,1745577035090,-502.87145596,0.00016473,2]
[358944748,1745577035099,-500.0,0.00016473,2]
[358944749,1745577035109,-500.0,0.00016473,2]
[358944750,1745577035119,-500.0,0.00016473,2]
[358944751,1745577035128,-500.0,0.00016473,2]
[358944752,1745577035138,-500.0,0.00016473,2]
[358944753,1745577035147,-500.0,0.00016473,2]
[358944754,1745577035156,-500.0,0.00016473,2]
[358944755,1745577035165,-500.0,0.00016473,2]
[358944756,1745577035175,-151.0,0.00016473,2]
[358944757,1745577035184,-151.0,0.00016473,2]
[358944758,1745577035193,-11425.89041851,0.00016474,2]
[358944759,1745577035208,-1153.37840773,0.00016474,2]
[358944760,1745577035217,-160.0,0.00016474,2]
[358944761,1745577035227,-160.0,0.00016488,2]
[358944762,1745577035236,-160.0,0.00016488,2]
[358944763,1745577035246,-840.21051354,0.00016488,2]
[358944764,1745577035255,-151.0,0.00016712,2]
[358944765,1745577035264,-151.0,0.00016712,2]
[358944766,1745577035274,-505.53235762,0.00016712,2]
[358944767,1745577035283,-153.03221882,0.00016712,2]
[358944768,1745577035292,-507.6080909,0.00016712,2]
[358944769,1745577035302,-500.0,0.00016712,2]
[358944770,1745577035311,-500.0,0.00016712,2]
[358944771,1745577035321,-651.99,0.00016712,2]
[358944772,1745577035330,-500.0,0.00016712,2]
[358944773,1745577035339,-500.0,0.00016712,2]
[358944774,1745577035349,-500.0,0.00016712,2]
[358944775,1745577035359,-500.0,0.00016712,2]
[358944776,1745577035367,-500.0,0.00016712,2]
[358944777,1745577035377,-500.0,0.00016712,2]
[358944778,1745577035386,-500.0,0.00016712,2]
[358944779,1745577035395,-500.0,0.00016712,2]
[358944780,1745577035403,-500.0,0.00016712,2]
[358944781,1745577035414,-500.0,0.00016712,2]
[358944782,1745577035425,-500.0,0.00016712,2]
[358944783,1745577035435,-651.41,0.00016712,2]
[358944784,1745577035443,-500.0,0.00016712,2]
[358944785,1745577035453,-637.13,0.00016712,2]
[358944786,1745577035462,-526.06,0.00016712,2]
[358944787,1745577035471,-500.0,0.00016712,2]
[358944788,1745577035481,-500.0,0.00016712,2]
[358944789,1745577035490,-500.0,0.00016712,2]
[358944790,1745577035502,-322.07,0.00016712,2]
[358944791,1745577035512,-2746.21,0.00016712,2]
[358944792,1745577035521,-631.19006777,0.00016712,2]
[358944793,1745577035530,-500.0,0.00016712,2]
[358944794,1745577035539,-500.0,0.00016712,2]
[358944795,1745577035548,-500.0,0.00016712,2]
[358944796,1745577035558,-315.32307825,0.00016712,2]
[358944797,1745577035567,-1121.65,0.00016712,2]
[358944798,1745577035576,-2561.55,0.00016712,2]
[358944799,1745577035586,-1033.2,0.00016712,2]
[358944800,1745577035595,-500.0,0.00016712,2]
[358944801,1745577035604,-500.0,0.00016712,2]
[358944802,1745577035613,-957.24,0.00016712,2]
[358944803,1745577035622,-725.53,0.00016712,2]
[358944804,1745577035631,-500.0,0.00016712,2]
[358944805,1745577035640,-500.0,0.00016712,2]
[358944806,1745577035650,-588.04,0.00016712,2]
[358944807,1745577035660,-679.05,0.00016712,2]
[358944808,1745577035670,-500.0,0.00016712,2]
[358944809,1745577035680,-500.0,0.00016712,2]
[358944810,1745577035690,-500.0,0.00016712,2]
[358944811,1745577035700,-500.0,0.00016712,2]
[358944812,1745577035710,-500.0,0.00016712,2]
[358944813,1745577035719,-500.0,0.00016712,2]
[358944814,1745577035729,-500.0,0.00016712,2]
[358944815,1745577035738,-736.61,0.00016712,2]
[358944816,1745577035747,-2313.3,0.00016712,2]
[358944817,1745577035757,-500.0,0.00016712,2]
[358944818,1745577035766,-500.0,0.00016712,2]
[358944819,1745577035775,-379.26194702,0.00016712,2]
[358944820,1745577035784,-598.03,0.00016712,2]
[358944821,1745577035793,-1809.12,0.00016712,2]
[358944822,1745577035802,-537.24,0.00016712,2]
[358944823,1745577035812,-500.0,0.00016712,2]
[358944824,1745577035821,-500.0,0.00016712,2]
[358944825,1745577035830,-583.0192884,0.00016712,2]
[358944826,1745577035861,-737.8007116,0.00016712,2]
[358944827,1745577035870,-500.0,0.00016712,2]
[358944828,1745577035878,-500.0,0.00016712,2]
[358944829,1745577035888,-500.0,0.00016712,2]
[358944830,1745577035897,-500.0,0.00016712,2]
[358944831,1745577035906,-1052.28,0.00016712,2]
[358944832,1745577035916,-415.07526879,0.00016717,2]
[358944833,1745577035925,-1000.0,0.00016747,2]
[358944834,1745577035935,-152.96031878,0.000168,2]
[358944835,1745577035944,-151.0,0.00016873,2]
[358944836,1745577035954,-151.0,0.00016873,2]
[358944837,1745577035964,-151.0,0.00016886,2]
[358944838,1745577035974,-151.0,0.00016886,2]
[358944839,1745577035986,-545.0,0.00016888,2]
[358944840,1745577035995,-2247.0,0.00016888,2]
[358944841,1745577036004,-403.0,0.00016888,2]
[358944842,1745577036014,-2639.15848083,0.000169,2]
[358944843,1745577036024,-500.0,0.00016986,2]
[358944844,1745577036033,-651.99,0.00016986,2]
[358944845,1745577036042,-500.0,0.00016986,2]
[358944846,1745577036052,-500.0,0.00016986,2]
[358944847,1745577036061,-500.0,0.00016986,2]
[358944848,1745577036070,-500.0,0.00016986,2]
[358944849,1745577036079,-500.0,0.00016986,2]
[358944850,1745577036089,-500.0,0.00016986,2]
[358944851,1745577036099,-500.0,0.00016986,2]
[358944852,1745577036108,-500.0,0.00016986,2]
[358944853,1745577036118,-500.0,0.00016986,2]
[358944854,1745577036127,-500.0,0.00016986,2]
[358944855,1745577036137,-500.0,0.00016986,2]
[358944856,1745577036147,-651.41,0.00016986,2]
[358944857,1745577036156,-500.0,0.00016986,2]
[358944858,1745577036166,-637.13,0.00016986,2]
[358944859,1745577036175,-526.06,0.00016986,2]
[358944860,1745577036185,-500.0,0.00016986,2]
[358944861,1745577036195,-500.0,0.00016986,2]
[358944862,1745577036204,-500.0,0.00016986,2]
[358944863,1745577036213,-2746.21,0.00016986,2]
[358944864,1745577036222,-500.0,0.00016986,2]
[358944865,1745577036232,-500.0,0.00016986,2]
[358944866,1745577036241,-500.0,0.00016986,2]
[358944867,1745577036251,-1121.65,0.00016986,2]
[358944868,1745577036260,-2561.55,0.00016986,2]
[358944869,1745577036270,-463.19939637,0.00016986,2]
[358944870,1745577036282,-570.00060363,0.00016986,2]
[358944871,1745577036291,-107.92041269,0.00016986,2]
[358944872,1745577036303,-392.07958731,0.00016986,2]
[358944873,1745577036312,-500.0,0.00016986,2]
[358944874,1745577036321,-47.44041269,0.00016986,2]
[358944897,1745577038646,-500.0,0.00016438,2]
[358944899,1745577038656,-500.0,0.00016438,2]
[358944901,1745577038665,-500.0,0.00016438,2]
[358944903,1745577038674,-500.0,0.00016438,2]
[358944905,1745577038683,-500.0,0.00016438,2]
[358944907,1745577038693,-500.0,0.00016438,2]
[358944909,1745577038702,-500.0,0.00016438,2]
[358944911,1745577038711,-500.0,0.00016438,2]
[358944913,1745577038720,-500.0,0.00016438,2]
[358944915,1745577038730,-500.0,0.00016438,2]
[358944917,1745577038742,-500.0,0.00016438,2]
[358944919,1745577038751,-500.0,0.00016438,2]
[358944921,1745577038760,-500.0,0.00016438,2]
[358944923,1745577038769,-584.09311289,0.00016438,2]
[358944925,1745577038778,-500.0,0.00016438,2]
[358944927,1745577038787,-500.0,0.00016438,2]
[358944929,1745577038796,-343.81484471,0.00016438,2]
[358944931,1745577038806,-909.79958731,0.00016986,2]
[358944933,1745577038815,-725.53,0.00016986,2]
[358944935,1745577038824,-500.0,0.00016986,2]
[358944937,1745577038833,-679.05,0.00016986,2]
[358944939,1745577038843,-155.8130717,0.00016986,2]
[358944942,1745577038852,-500.0,0.00016986,2]
[358944945,1745577038861,-500.0,0.00016986,2]
[358944948,1745577038871,-612.09,0.00016986,2]
[358944949,1745577038879,-500.0,0.00016986,2]
[358944951,1745577038888,-500.0,0.00016986,2]
[358944953,1745577038897,-736.61,0.00016986,2]
[358944955,1745577038906,-2313.3,0.00016986,2]
[358944957,1745577038916,-500.0,0.00016986,2]
[358944959,1745577038925,-500.0,0.00016986,2]
[358944961,1745577038934,-1809.12,0.00016986,2]
[358944963,1745577038944,-500.0,0.00016986,2]
[358944965,1745577038953,-1320.82,0.00016986,2]
[358944967,1745577038962,-500.0,0.00016986,2]
[358944969,1745577038971,-245.29,0.00016986,2]
[358944971,1745577038980,-500.0,0.00016986,2]
[358944973,1745577038992,-303.25173183,0.00016986,2]
[358944975,1745577039001,-1052.28,0.00016986,2]
[358944976,1745577039010,-1500.0,0.00017021,2]
[358944978,1745577039019,-420.0,0.00017037,2]
[358944980,1745577039029,-420.0,0.00017037,2]
[358944982,1745577039038,-177.168,0.00017221,2]
[358944984,1745577039048,-151.0,0.0001726,2]
[358944986,1745577039057,-151.0,0.0001726,2]
[358944988,1745577039067,-500.0,0.0001726,2]
[358944990,1745577039077,-651.99,0.0001726,2]
[358944992,1745577039086,-292.37247775,0.0001726,2]
[358944995,1745577039099,-207.62752225,0.0001726,2]
[358944997,1745577039108,-500.0,0.0001726,2]
[358944998,1745577039118,-500.0,0.0001726,2]
[358945000,1745577039127,-500.0,0.0001726,2]
[358945002,1745577039136,-500.0,0.0001726,2]
[358945004,1745577039146,-500.0,0.0001726,2]
[358945006,1745577039156,-500.0,0.0001726,2]
[358945008,1745577039165,-246.62925175,0.0001726,2]
[358945011,1745577039181,-253.37074825,0.0001726,2]
[358945013,1745577039191,-500.0,0.0001726,2]
[358945015,1745577039200,-106.71468193,0.0001726,2]
[358945066,1745577041035,-400.0,0.00016438,2]
[358945082,1745577043819,-621.44,0.00016438,2]
[358945083,1745577043829,-500.0,0.00016438,2]
[358945084,1745577043838,-500.0,0.00016438,2]
[358945085,1745577043848,-500.0,0.00016438,2]
[358945086,1745577043866,-706.99,0.00016438,2]
[358945087,1745577043878,-1021.44,0.00016712,2]
[358945088,1745577043888,-500.0,0.00016712,2]
[358945089,1745577043898,-500.0,0.00016712,2]
[358945090,1745577043908,-706.99,0.00016712,2]
[358945091,1745577043918,-1021.44,0.00016986,2]
[358945092,1745577043928,-500.0,0.00016986,2]
[358945093,1745577043937,-500.0,0.00016986,2]
[358945094,1745577043947,-706.99,0.00016986,2]
[358945095,1745577043957,-393.28531807,0.0001726,2]
[358945096,1745577043967,-500.0,0.0001726,2]
[358945097,1745577043977,-651.41,0.0001726,2]
[358945099,1745577043986,-500.0,0.0001726,2]
[358945100,1745577043996,-526.06,0.0001726,2]
[358945102,1745577044006,-500.0,0.0001726,2]
[358945104,1745577044017,-500.0,0.0001726,2]
[358945105,1745577044027,-500.0,0.0001726,2]
[358945108,1745577044037,-2746.21,0.0001726,2]
[358945110,1745577044046,-500.0,0.0001726,2]
[358945111,1745577044056,-500.0,0.0001726,2]
[358945112,1745577044066,-500.0,0.0001726,2]
[358945113,1745577044076,-1121.65,0.0001726,2]
[358945114,1745577044086,-2561.55,0.0001726,2]
[358945115,1745577044096,-1033.2,0.0001726,2]
[358945116,1745577044105,-500.0,0.0001726,2]
[358945117,1745577044115,-500.0,0.0001726,2]